bitfinex/quotes_SOLUSD_20260202
["timestamp","ask_amount","ask_price","bid_price","bid_amount"]
[1770054824384,0.75047636,104.87,104.84,9.49440294]
[1770054824789,0.75047636,104.87,104.84,0.74625905]
[1770054825196,10.28618898,104.87,104.84,0.74625905]
[1770054825497,0.75047636,104.87,104.84,0.74625905]
[1770054825695,0.75047636,104.87,104.84,9.49440294]
[1770054825994,0.75047636,104.87,104.84,0.74625905]
[1770054826898,10.28619696,104.87,104.84,0.74625905]
[1770054828995,10.28619696,104.87,104.84,10.28455935]
[1770054829193,0.75047636,104.87,104.84,10.28455935]
[1770054829896,10.28610337,104.87,104.84,10.28455935]
[1770054830104,1.04675999,104.85,104.82,36.99603066]
[1770054830772,9.79490388,104.86,104.82,36.99603066]
[1770054831279,1.04675999,104.86,104.82,45.74417455]
[1770054831474,1.04675999,104.85,104.82,36.0397899]
[1770054831675,1.04675999,104.84,104.82,26.5]
[1770054832077,1.04675999,104.82,104.78,9.70438465]
[1770054832304,9.79490388,104.82,104.79,9.54286757]
[1770054832482,9.79490388,104.83,104.79,19.24725222]
[1770054833499,1.04675999,104.83,104.79,19.24725222]
[1770054833803,8.74814389,104.84,104.81,10.49721495]
[1770054833804,1.04675999,104.84,104.81,10.49721495]
[1770054834006,9.79490388,104.84,104.81,10.49721495]
[1770054834496,1.04675999,104.87,104.83,0.95624076]
[1770054834681,1.04675999,104.87,104.83,9.70438465]
[1770054834878,9.79490388,104.89,104.85,9.70438465]
[1770054835201,1.04675999,104.88,104.85,9.70438465]
[1770054836201,9.79490388,104.89,104.85,9.70438465]
[1770054836407,10.58080736,104.89,104.85,19.24145221]
[1770054837995,19.32895125,104.89,104.85,9.70438465]
[1770054838177,9.79490388,104.86,104.82,9.70438465]
[1770054838374,19.33169593,104.86,104.82,10.49592667]
[1770054839397,1.04675999,104.85,104.82,8.74814389]
[1770054839599,9.79490388,104.85,104.81,19.24484596]
[1770054839775,1.04675999,104.85,104.81,19.24484596]
[1770054840202,1.04675999,104.84,104.81,18.2886052]
[1770054840501,1.04675999,104.84,104.81,9.54046131]
[1770054840701,1.04675999,104.84,104.81,18.28878788]
[1770054840899,1.04675999,104.86,104.82,9.70438465]
[1770054841296,1.04675999,104.86,104.83,8.74814389]
[1770054841605,19.44271437,104.89,104.85,9.70438465]
[1770054842501,0.2,104.9,104.88,0.95624076]
[1770054842701,10.69457048,104.93,104.9,10.48912922]
[1770054843000,8.74814389,104.93,104.89,10.48966036]
[1770054843206,8.74814389,104.93,104.89,9.70438465]
[1770054843398,9.79490388,104.93,104.89,19.23817115]
[1770054845506,19.32537553,104.93,104.89,19.23817115]
[1770054845808,10.57723164,104.93,104.89,19.23817115]
[1770054846012,10.57648606,104.94,104.9,9.70438465]
[1770054846307,10.57648606,104.94,104.91,8.74814389]
[1770054846743,10.38692553,104.97,104.93,9.70438465]
[1770054847008,0.2,104.97,104.95,8.74814389]
[1770054847187,0.2,104.97,104.94,9.70438465]
[1770054847508,0.2,104.97,104.94,19.2334916]
[1770054848410,0.2,104.97,104.95,9.70438465]
[1770054848998,1.04675999,104.99,104.96,9.70438465]
[1770054849591,10.57161402,104.99,104.96,0.95624076]
[1770054850117,1.04675999,104.99,104.96,10.48366746]
[1770054850409,1.24675999,105.0,104.96,19.23181135]
[1770054851010,10.77082141,105.0,104.96,19.23181135]
[1770054851613,19.5189653,105.0,104.96,19.23181135]
[1770054852423,10.77082141,105.0,104.96,19.23181135]
[1770054852822,1.24675999,105.0,104.96,19.23181135]
[1770054854146,10.77078553,105.0,104.96,19.23181135]
[1770054854428,1.04675999,104.99,104.95,19.2322974]
[1770054854616,1.04675999,104.99,104.95,0.95624076]
[1770054854617,1.04675999,104.98,104.95,0.95624076]
[1770054854811,1.04675999,104.98,104.94,19.23317266]
[1770054855807,1.04675999,104.98,104.94,10.48502877]
[1770054856028,10.57286187,104.98,104.94,0.95624076]
[1770054856222,9.79490388,104.97,104.92,19.23498752]
[1770054856427,9.79490388,104.97,104.93,9.70438465]
[1770054856630,9.79490388,104.97,104.93,0.95624076]
[1770054856834,1.04675999,104.96,104.93,0.95624076]
[1770054857245,1.04675999,104.97,104.93,19.23413446]
[1770054857537,1.04675999,104.97,104.94,9.70438465]
[1770054857712,1.04675999,104.97,104.93,19.23413446]
[1770054857908,10.57362149,104.97,104.93,19.23413446]
[1770054858838,19.32176538,104.97,104.93,19.23413446]
[1770054859135,19.32176538,104.97,104.93,9.70438465]
[1770054859316,19.32176538,104.97,104.93,19.23440418]
[1770054860424,10.57362149,104.97,104.93,19.23440418]
[1770054861632,1.11705883,104.95,104.91,19.37587782]
[1770054861835,9.86520272,104.95,104.91,1.09616282]
[1770054862340,9.86520272,104.95,104.91,10.62810951]
[1770054862742,9.86520272,104.95,104.91,1.09616282]
[1770054863537,1.11705883,104.94,104.91,1.09616282]
[1770054864637,10.64639321,104.94,104.91,1.09616282]
[1770054864837,1.11705883,104.93,104.89,18.28162595]
[1770054865015,9.86520272,104.93,104.89,10.62964488]
[1770054865221,9.86520272,104.93,104.89,1.09616282]
[1770054865442,9.86520272,104.93,104.88,18.28209498]
[1770054865628,8.74814389,104.92,104.88,18.28209498]
[1770054866730,1.11705883,104.93,104.9,8.74814389]
[1770054867030,1.11705883,104.93,104.89,8.74814389]
[1770054867432,1.11705883,104.93,104.89,9.77632134]
[1770054868625,1.11705883,104.93,104.89,9.76753193]
[1770054869156,1.11705883,104.93,104.89,19.30056128]
[1770054870248,1.11705883,104.93,104.89,19.30162022]
[1770054870932,1.11705883,104.93,104.89,43.13611349]
[1770054871137,19.38416792,104.96,104.92,10.56346246]
[1770054871339,1.11705883,104.96,104.93,8.73935448]
[1770054871538,1.11705883,104.96,104.93,9.77239735]
[1770054871741,19.3834044,104.97,104.93,9.77239735]
[1770054871952,19.3834044,104.97,104.94,8.73935448]
[1770054871953,1.11705883,104.97,104.94,8.73935448]
[1770054872150,1.11705883,104.97,104.94,9.77616012]
[1770054872743,10.64310872,104.98,104.94,9.77616012]
[1770054872945,1.11705883,104.98,104.94,9.77616012]
[1770054873143,1.11705883,104.98,104.95,9.77987966]
[1770054873447,1.11705883,104.98,104.95,19.30783935]
[1770054875651,1.11705883,104.97,104.94,9.78719108]
[1770054875849,1.11705883,104.97,104.94,1.0478366]
[1770054876634,1.11705883,104.97,104.94,19.31631216]
[1770054877237,1.11705883,104.95,104.91,1.05498102]
[1770054877444,9.85641331,104.96,104.92,10.58589267]
[1770054877638,19.38419057,104.96,104.92,10.58589267]
[1770054877859,10.64483609,104.96,104.92,19.32524715]
[1770054878537,1.11705883,104.95,104.92,9.53091165]
[1770054878737,1.11705883,104.95,104.91,19.32947742]
[1770054878956,1.11705883,104.95,104.92,8.73935448]
[1770054879962,1.11705883,104.95,104.92,9.80474734]
[1770054881064,1.11705883,104.95,104.92,19.33576992]
[1770054881441,10.64389221,104.97,104.93,9.80813853]
[1770054881635,12.01162931,105.0,104.96,8.73935448]
[1770054881847,1.31705883,105.0,104.97,8.73935448]
[1770054883244,1.31705883,105.0,104.97,18.26581055]
[1770054883463,0.2,105.0,104.99,8.73935448]
[1770054883756,0.2,105.0,104.98,9.81480451]
[1770054885562,0.2,105.0,104.98,8.73935448]
[1770054886962,0.2,105.0,104.98,18.26490752]
[1770054887362,0.2,105.02,105.0,1.08832872]
[1770054887566,0.2,105.02,105.0,9.8276832]
[1770054887864,0.2,105.02,105.0,8.73935448]
[1770054888245,1.31705883,105.02,105.0,8.73935448]
[1770054888566,0.2,105.02,105.0,8.73935448]
[1770054889353,0.2,105.02,105.01,9.52290258]
[1770054889554,1.08434692,105.05,105.01,19.35986168]
[1770054889750,27.56434692,105.06,105.03,8.73935448]
[1770054890267,26.48,105.06,105.04,8.73935448]
[1770054890767,1.29593992,105.09,105.05,9.84591902]
[1770054890974,1.29593992,105.09,105.01,33.33015903]
[1770054890975,0.2,105.09,105.07,8.73935448]
[1770054891174,0.2,105.09,105.06,1.10656454]
[1770054891385,1.29593992,105.09,105.06,8.73935448]
[1770054891673,1.29593992,105.09,105.06,18.2576107]
[1770054892472,10.81178739,105.09,105.06,8.73935448]
[1770054892668,0.2,105.09,105.08,8.73935448]
[1770054893175,0.2,105.09,105.07,8.73935448]
[1770054893474,0.2,105.09,105.08,8.73935448]
[1770054893858,0.2,105.09,105.07,18.25640714]
[1770054894685,0.2,105.09,105.07,8.73935448]
[1770054894860,1.09593992,105.08,105.04,18.25905208]
[1770054895067,1.09593992,105.08,105.04,19.37709022]
[1770054895364,1.09593992,105.08,105.05,9.51910266]
[1770054895576,1.09593992,105.08,105.05,18.25845714]
[1770054895780,1.09593992,105.08,105.05,8.73935448]
[1770054896892,10.61250981,105.08,105.04,19.37712097]
[1770054897095,1.09593992,105.06,105.01,10.64639354]
[1770054897386,1.09593992,105.05,105.02,9.52182145]
[1770054897890,1.09593992,105.05,105.02,18.26117593]
[1770054898456,1.09593992,105.06,105.02,19.38747796]
[1770054898880,1.09593992,105.05,105.01,8.73935448]
[1770054899070,1.09593992,105.04,105.01,8.73935448]
[1770054899476,1.09593992,105.04,105.0,19.39182094]
[1770054899671,10.61612281,105.04,105.0,19.39182094]
[1770054900090,1.09593992,105.04,105.01,8.73935448]
[1770054900295,1.09593992,105.04,105.0,10.65246646]
[1770054900586,1.09593992,105.03,105.0,19.39465721]
[1770054900769,10.61471228,105.06,105.01,9.87363889]
[1770054900966,10.61454635,105.06,105.02,9.87363889]
[1770054901585,10.61522078,105.05,105.01,19.39608649]
[1770054901807,10.61522078,105.05,105.0,23.8095238]
[1770054901808,1.09593992,105.04,105.0,18.26246016]
[1770054901978,1.09593992,105.04,105.01,9.87447994]
[1770054902288,9.8352944,105.04,105.0,18.26246016]
[1770054902498,1.09593992,105.03,104.99,19.39893635]
[1770054902783,9.8352944,105.03,104.99,19.39893635]
[1770054903201,9.8352944,105.03,104.99,9.87447994]
[1770054903373,9.8352944,105.03,104.99,19.39876915]
[1770054903573,19.35667756,105.03,104.99,19.39876915]
[1770054904091,1.09593992,105.01,104.97,10.66146736]
[1770054904294,1.09593992,105.0,104.97,8.73935448]
[1770054905301,1.09593992,104.99,104.95,19.40234567]
[1770054905486,1.09593992,104.99,104.96,9.52736305]
[1770054905682,9.52516743,104.99,104.96,9.87447994]
[1770054905888,19.35956282,105.0,104.96,9.87447994]
[1770054907495,1.09593992,104.99,104.96,19.40179163]
[1770054909195,1.09593992,105.0,104.96,19.40179163]
[1770054909384,1.09593992,105.0,104.97,8.73935448]
[1770054910783,10.61976553,105.0,104.96,19.40179163]
[1770054910989,1.09593992,104.98,104.95,9.52808913]
[1770054911194,1.09593992,104.98,104.94,19.40347351]
[1770054911697,1.09593992,104.98,104.95,9.52813446]
[1770054911912,1.09593992,104.98,104.93,8.73935448]
[1770054911913,1.09593992,104.97,104.93,8.73935448]
[1770054912197,1.09593992,104.97,104.94,19.40364272]
[1770054912600,1.09593992,104.99,104.95,19.40282074]
[1770054912802,10.62078566,104.99,104.96,8.73935448]
[1770054914011,1.09593992,104.98,104.94,19.40328234]
[1770054914704,1.09593992,104.96,104.92,10.66575229]
[1770054914885,9.8352944,104.97,104.93,9.87447994]
[1770054915809,19.36226201,104.97,104.93,1.13512546]
[1770054915988,1.09593992,104.95,104.92,10.666029]
[1770054916183,0.28432314,104.99,104.94,9.87447994]
[1770054916184,1.09593992,104.98,104.94,9.87447994]
[1770054916398,18.2652087,104.98,104.94,9.87447994]
[1770054916681,1.09593992,104.97,104.94,9.87447994]
[1770054917212,19.36191852,104.97,104.93,19.40411343]
[1770054917620,10.62256404,104.97,104.93,19.40411343]
[1770054919016,9.8352944,104.96,104.92,18.27038627]
[1770054919203,1.09593992,104.96,104.92,19.40551173]
[1770054919515,1.09593992,104.96,104.93,9.53007771]
[1770054919701,10.62256404,104.97,104.93,19.40455765]
[1770054920313,1.09593992,104.97,104.93,19.40455765]
[1770054920492,1.09593992,104.97,104.94,8.73935448]
[1770054920696,27.61741348,105.0,104.96,9.84930249]
[1770054920894,27.61741348,105.0,104.97,8.73935448]
[1770054921196,1.15741348,105.0,104.97,8.73935448]
[1770054921398,10.68129259,105.0,104.96,19.37661672]
[1770054922232,1.15741348,105.0,104.97,9.84930249]
[1770054922420,9.89676796,105.02,104.98,9.84930249]
[1770054922812,10.67973955,105.02,104.98,9.84930249]
[1770054922999,1.15741348,105.02,104.99,18.26388475]
[1770054923694,10.67965577,105.02,104.98,19.37444461]
[1770054924021,1.15741348,105.0,104.96,19.37621281]
[1770054924223,9.89676796,105.0,104.96,1.10994801]
[1770054924423,1.15741348,104.99,104.96,1.10994801]
[1770054925125,1.15741348,104.99,104.96,8.73935448]
[1770054925634,10.68236922,104.99,104.96,8.73935448]
[1770054925801,1.15741348,104.97,104.94,9.528856]
[1770054926002,1.15741348,104.97,104.93,19.37922155]
[1770054926201,1.15741348,104.98,104.94,1.10994801]
[1770054926409,1.15741348,104.98,104.95,18.26717255]
[1770054926918,1.15741348,104.98,104.94,19.37809693]
[1770054928403,10.68350667,104.98,104.94,19.37809693]
[1770054928721,1.15741348,104.98,104.95,8.73935448]
[1770054928903,18.26350846,105.0,104.96,8.73935448]
[1770054929100,1.15741348,104.99,104.95,9.84930249]
[1770054929300,1.15741348,104.99,104.96,8.73935448]
[1770054930424,1.15741348,104.99,104.96,18.25467845]
[1770054932728,10.6808126,105.01,104.98,8.7276149]
[1770054932922,1.15741348,105.0,104.97,9.83756291]
[1770054934025,1.15741348,104.99,104.95,19.36539619]
[1770054934408,1.15741348,104.98,104.95,8.7276149]
[1770054935430,1.15741348,104.98,104.95,18.25578446]
[1770054935907,1.15741348,104.99,104.96,8.7276149]
[1770054936844,10.68251181,104.99,104.96,8.7276149]
[1770054939527,1.15741348,104.99,104.96,18.25488556]
[1770054939829,1.15741348,104.99,104.96,19.36483357]
[1770054941540,19.69263692,105.01,104.97,9.83756291]
[1770054941715,1.15741348,105.01,104.98,9.83756291]
[1770054942948,1.15741348,105.03,105.0,9.83756291]
[1770054943130,1.15741348,105.03,105.0,8.7276149]
[1770054943717,1.15741348,105.03,104.99,19.36227954]
[1770054944049,1.15741348,105.03,105.0,8.7276149]
[1770054944912,1.15741348,105.06,105.02,1.10994801]
[1770054945115,10.67437372,105.08,105.04,8.7276149]
[1770054945425,1.15741348,105.07,105.05,8.7276149]
[1770054945618,1.15741348,105.08,105.04,9.83756291]
[1770054945831,1.15741348,105.07,105.04,9.83756291]
[1770054946033,1.15741348,105.07,105.04,1.10994801]
[1770054946420,8.7276149,105.05,105.0,34.44311239]
[1770054946623,1.15741348,105.04,105.01,8.7276149]
[1770054948318,1.15741348,105.03,105.0,9.83756291]
[1770054948532,1.15741348,105.03,105.0,8.7276149]
[1770054948736,1.15741348,105.03,105.0,19.42238415]
[1770054949739,1.23284357,105.02,104.98,9.89863225]
[1770054949922,1.23572303,105.01,104.98,10.69659923]
[1770054950122,1.23572303,105.01,104.98,1.17101735]
[1770054950327,1.23572303,105.01,104.98,9.89863225]
[1770054950743,10.75872071,105.01,104.98,9.89863225]
[1770054951253,10.75872071,105.01,104.98,8.7276149]
[1770054952054,1.23572303,105.0,104.95,10.7671517]
[1770054952239,1.23572303,104.99,104.95,19.4947666]
[1770054952643,1.23572303,104.98,104.95,9.96695358]
[1770054952833,10.76134695,104.98,104.95,1.23933868]
[1770054953936,10.76093662,104.99,104.95,19.49527652]
[1770054954137,10.76093662,104.99,104.96,8.7276149]
[1770054954436,10.75995717,105.0,104.97,8.7276149]
[1770054954844,1.23572303,105.0,104.97,18.25377913]
[1770054955040,1.23572303,105.02,104.98,9.96832236]
[1770054955246,1.23572303,105.0,104.97,9.96832236]
[1770054955876,1.23572303,105.0,104.97,19.49465256]
[1770054956255,43.29084515,105.02,104.97,19.49465256]
[1770054956447,1.23572303,105.01,104.98,8.7276149]
[1770054956774,1.23572303,105.01,104.97,19.49465256]
[1770054957385,9.96333793,105.03,104.98,9.96832236]
[1770054957676,1.23572303,105.02,104.98,9.96832236]
[1770054958468,1.23572303,105.02,104.97,33.34265867]
[1770054958469,19.48470919,105.03,104.99,9.96832236]
[1770054958666,1.23572303,105.02,104.99,8.7276149]
[1770054958875,1.23572303,105.01,104.98,8.7276149]
[1770054959055,1.23572303,105.01,104.98,18.25321673]
[1770054960164,10.75824747,105.02,104.98,19.49392419]
[1770054960347,10.75824747,105.02,104.98,9.96832236]
[1770054960548,1.23572303,105.01,104.98,1.24070746]
[1770054960878,1.23572303,105.0,104.97,1.24070746]
[1770054961370,10.75967701,105.0,104.97,1.24070746]
[1770054962352,10.75967701,105.0,104.96,10.76766618]
[1770054962659,10.75907717,105.01,104.97,19.49442853]
[1770054962871,1.23572303,105.01,104.98,9.96832236]
[1770054963079,1.23572303,105.02,104.99,8.7276149]
[1770054963376,1.23572303,105.03,105.0,9.52380952]
[1770054963554,10.75684103,105.03,104.99,19.49272423]
[1770054963751,1.23572303,105.03,104.99,19.49272423]
[1770054963956,9.52071335,105.04,105.01,9.96832236]
[1770054964159,10.7554326,105.05,105.01,9.96832236]
[1770054964678,1.23572303,105.04,105.0,8.7276149]
[1770054964847,9.96333793,105.04,105.0,8.7276149]
[1770054965055,1.23572303,105.04,105.0,8.7276149]
[1770054965380,10.75610188,105.04,105.0,18.25100049]
[1770054965566,1.23572303,105.03,104.99,19.4925649]
[1770054965772,1.23572303,105.03,105.0,19.49209766]
[1770054966458,1.23572303,105.05,105.02,9.96832236]
[1770054966663,10.75447184,105.06,105.03,8.7276149]
[1770054966877,1.23572303,105.05,105.02,8.7276149]
[1770054967078,1.23572303,105.04,105.0,19.49209766]
[1770054967367,10.75681224,105.03,105.0,9.96832236]
[1770054967777,10.75681224,105.03,105.0,1.24070746]
[1770054968079,19.48442714,105.03,104.99,1.24070746]
[1770054968259,1.23572303,105.01,104.97,19.49437411]
[1770054968455,1.23572303,105.0,104.97,1.24070746]
[1770054968764,1.23572303,104.99,104.96,9.96832236]
[1770054969575,1.23572303,104.99,104.96,19.49569036]
[1770054970174,10.76003284,105.0,104.96,19.49569036]
[1770054970392,10.75911318,105.01,104.97,9.96832236]
[1770054971057,1.23572303,105.0,104.97,9.96832236]
[1770054971575,10.760446,104.99,104.95,19.4961472]
[1770054972573,19.4880609,104.99,104.95,19.4961472]
[1770054972764,1.23572303,104.97,104.93,19.49794734]
[1770054973161,1.23572303,104.97,104.94,9.52911377]
[1770054973365,1.23572303,104.97,104.94,10.76982123]
[1770054973773,1.23572303,104.96,104.93,9.52973118]
[1770054973976,9.96333793,104.96,104.92,20.33870568]
[1770054974280,9.96333793,104.96,104.92,1.24070746]
[1770054974574,9.96333793,104.96,104.92,9.96832236]
[1770054975169,19.49131224,104.96,104.92,19.4993896]
[1770054975368,1.23572303,104.94,104.91,8.7276149]
[1770054975675,1.23572303,104.94,104.9,19.50049445]
[1770054975980,1.23572303,104.94,104.91,18.25944684]
[1770054976186,1.23572303,104.94,104.91,19.5001543]
[1770054976375,1.23572303,104.96,104.93,9.96832236]
[1770054976886,1.23572303,104.95,104.92,8.7276149]
[1770054977181,1.23572303,104.95,104.9,19.50072807]
[1770054977182,1.23572303,104.94,104.9,19.50072807]
[1770054977681,1.23572303,104.93,104.89,18.2609422]
[1770054977884,9.96333793,104.93,104.89,18.2609422]
[1770054978584,1.23572303,104.93,104.89,19.50164966]
[1770054980287,10.76628701,104.93,104.89,19.50164966]
[1770054980989,1.19476336,104.92,104.89,19.50164966]
[1770054982075,10.72532734,104.93,104.89,19.50164966]
[1770054983481,19.45112688,104.95,104.91,1.25309608]
[1770054983687,1.19476336,104.95,104.92,9.98071098]
[1770054984891,10.72331838,104.95,104.91,19.5121859]
[1770054986387,1.19476336,104.98,104.94,9.98071098]
[1770054986689,1.19476336,104.98,104.95,9.98071098]
[1770054986871,10.72048653,104.98,104.94,9.98071098]
[1770054987883,10.72048653,104.98,104.94,19.50969986]
[1770054988788,1.19476336,104.97,104.94,19.50969986]
[1770054988988,1.19476336,104.97,104.94,1.25309608]
[1770054989473,1.19476336,104.97,104.94,9.98071098]
[1770054989975,1.19476336,104.97,104.91,19.51220047]
[1770054989976,1.19476336,104.95,104.91,19.51220047]
[1770054990385,1.19476336,104.95,104.91,19.52035541]
[1770054990694,1.19476336,104.94,104.91,19.52035541]
[1770054990988,1.19476336,104.93,104.9,18.26851558]
[1770054991191,1.19476336,104.93,104.9,19.52161166]
[1770054993491,10.72436535,104.94,104.9,19.52161166]
[1770054994486,18.26537675,104.94,104.9,19.52161166]
[1770054994689,1.19476336,104.93,104.9,19.52161166]
[1770054995380,1.19476336,104.93,104.9,10.7858369]
[1770054995580,1.19476336,104.93,104.9,19.52161166]
[1770054998809,9.93053812,104.92,104.89,9.53356526]
[1770054999102,9.93053812,104.92,104.88,19.52308521]
[1770054999302,1.19476336,104.92,104.89,10.78679249]
[1770054999986,9.93053812,104.92,104.89,9.53369641]
[1770055000516,19.46167011,104.92,104.89,9.53369641]
[1770055000806,1.19476336,104.91,104.88,19.52306681]
[1770055001014,1.19476336,104.91,104.88,18.26997073]
[1770055001193,9.93053812,104.91,104.87,19.52405599]
[1770055001505,1.19476336,104.91,104.88,19.52353449]
[1770055001878,1.19476336,104.91,104.87,19.52397674]
[1770055002681,1.19476336,104.91,104.88,1.25309608]
[1770055003184,10.72695284,104.91,104.87,19.52397674]
[1770055003991,1.19476336,104.91,104.88,9.98887084]
[1770055004705,1.19476336,104.91,104.88,19.52346793]
[1770055005694,1.19476336,104.91,104.89,8.73577476]
[1770055006198,1.19476336,104.91,104.87,10.78824926]
[1770055006395,1.19476336,104.9,104.87,19.52402402]
[1770055006604,10.7278616,104.9,104.87,9.98887084]
[1770055006894,1.19476336,104.89,104.86,19.72495801]
[1770055007813,1.19476336,104.89,104.86,0.2]
[1770055008902,1.15803421,104.88,104.86,0.2]
[1770055009784,10.69275645,104.88,104.86,0.2]
[1770055009984,1.15803421,104.88,104.86,0.2]
[1770055011310,10.69274659,104.88,104.86,0.2]
[1770055012710,1.15803421,104.88,104.86,0.2]
[1770055012902,1.15803421,104.88,104.86,3.69885705]
[1770055013210,1.15803421,104.88,104.86,0.2]
[1770055013411,10.69277818,104.88,104.86,0.2]
[1770055013908,1.22068478,104.87,104.86,0.2]
[1770055014107,10.7563003,104.87,104.86,0.2]
[1770055015795,1.22068478,104.87,104.86,0.2]
[1770055018311,10.75488512,104.89,104.86,0.2]
[1770055018502,10.75488512,104.89,104.86,3.69885705]
[1770055019192,1.22068478,104.88,104.86,0.2]
[1770055021597,1.22068478,104.9,104.87,4.76924843]
[1770055022008,1.22068478,104.9,104.88,3.49885705]
[1770055022208,1.22068478,104.9,104.87,4.76924843]
[1770055023322,1.22068478,104.9,104.87,14.3048223]
[1770055024711,10.75360425,104.9,104.87,1.27039138]
[1770055024917,1.22068478,104.89,104.86,4.96924843]
[1770055025603,1.22068478,104.89,104.86,14.50569349]
[1770055025805,1.22068478,104.9,104.87,4.76924843]
[1770055026006,27.72068478,104.92,104.89,4.76924843]
[1770055026315,27.72068478,104.92,104.9,3.49885705]
[1770055026515,27.72068478,104.92,104.89,4.76924843]
[1770055027823,27.72068478,104.92,104.89,14.30262034]
[1770055028211,27.72068478,104.92,104.9,3.49885705]
[1770055029922,27.72068478,104.92,104.9,13.03170046]
[1770055030130,27.72068478,104.92,104.9,3.49885705]
[1770055030311,1.22068478,104.92,104.9,3.49885705]
[1770055033634,1.22068478,104.92,104.89,14.30246034]
[1770055035337,7.75125189,104.93,104.89,14.30246034]
[1770055035712,5.90983863,104.94,104.92,1.27039138]
[1770055035938,3.49885705,104.98,104.94,1.27039138]
[1770055036234,8.45675569,104.98,104.93,4.76924843]
[1770055036449,3.49885705,104.98,104.93,4.76924843]
[1770055036637,3.49885705,104.97,104.93,1.27039138]
[1770055037132,9.52743902,104.96,104.93,1.27039138]
[1770055037346,10.7481238,104.96,104.93,1.27039138]
[1770055037839,1.22068478,104.95,104.92,14.30022826]
[1770055038040,1.22068478,104.94,104.9,14.30166046]
[1770055038234,1.22068478,104.92,104.88,14.30395476]
[1770055038435,4.71954183,104.92,104.89,1.27039138]
[1770055038849,4.71954183,104.92,104.88,10.80509771]
[1770055039020,1.22068478,104.92,104.89,1.27039138]
[1770055039219,1.22068478,104.92,104.89,14.30265121]
[1770055039629,1.22068478,104.92,104.89,10.80379416]
[1770055040345,1.22068478,104.92,104.89,14.30265121]
[1770055043145,1.22068478,104.92,104.89,10.80379416]
[1770055043931,1.22068478,104.92,104.89,14.30265121]
[1770055048854,10.7517787,104.92,104.89,14.30265121]
[1770055049349,1.22068478,104.92,104.89,14.30265121]
[1770055049651,9.5303378,104.93,104.9,1.18223892]
[1770055049833,10.74990836,104.93,104.9,1.18223892]
[1770055050034,10.74990836,104.93,104.88,1.18223892]
[1770055050035,1.21957056,104.91,104.88,1.18223892]
[1770055050233,1.21957056,104.9,104.87,10.71708719]
[1770055050644,1.21957056,104.91,104.88,10.71693342]
[1770055052070,1.21957056,104.92,104.89,4.68109597]
[1770055052350,1.21957056,104.92,104.89,1.18223892]
[1770055052550,1.21957056,104.93,104.9,1.18223892]
[1770055052752,37.22841263,104.95,104.91,4.67833634]
[1770055053049,37.22841263,104.95,104.91,14.20999882]
[1770055054558,27.69957056,104.95,104.92,4.67833634]
[1770055055336,27.69957056,104.95,104.92,14.2092572]
[1770055057454,1.21957056,104.95,104.92,14.2092572]
[1770055057846,27.3142253,104.97,104.94,4.67833634]
[1770055057847,10.74659654,104.97,104.94,4.67833634]
[1770055058849,1.21957056,104.97,104.94,4.67833634]
[1770055059045,10.74611986,104.97,104.94,4.67833634]
[1770055059246,1.21957056,104.97,104.94,4.67833634]
[1770055059457,1.21957056,104.97,104.95,1.18223892]
[1770055061852,10.74631894,104.97,104.94,4.67833634]
[1770055062059,1.21957056,104.96,104.93,14.20818401]
[1770055063446,1.21957056,104.96,104.93,10.71208659]
[1770055065061,1.21957056,104.95,104.92,10.71281386]
[1770055068354,10.74795133,104.95,104.92,1.18223892]
[1770055068954,14.24404875,104.95,104.92,1.18223892]
[1770055069155,4.73843852,104.95,104.92,10.71325995]
[1770055069361,1.2423411,104.95,104.92,10.71325995]
[1770055069562,1.2423411,104.94,104.92,9.53102103]
[1770055069961,1.2423411,104.94,104.91,14.333435]
[1770055070272,1.2423411,104.94,104.91,10.77627979]
[1770055070771,3.49609742,104.94,104.91,1.24475433]
[1770055070970,1.19922742,104.93,104.91,1.24475433]
[1770055071174,1.19922742,104.93,104.9,10.77716342]
[1770055071370,10.72939996,104.93,104.9,10.77716342]
[1770055071872,10.72889762,104.94,104.91,1.24475433]
[1770055073748,1.19922742,104.93,104.9,14.27326084]
[1770055075555,10.72956511,104.93,104.9,10.77716342]
[1770055075855,10.72956511,104.93,104.9,1.24475433]
[1770055076878,10.72956511,104.93,104.9,10.77764124]
[1770055079578,14.22566253,104.93,104.9,1.24475433]
[1770055079781,10.72956511,104.93,104.9,1.24475433]
[1770055080476,1.19922742,104.9,104.87,1.24475433]
[1770055080658,1.19922742,104.89,104.86,0.2]
[1770055080980,4.97964798,104.92,104.88,1.24475433]
[1770055081179,1.19922742,104.91,104.88,1.24475433]
[1770055081593,15.38974979,104.93,104.89,1.24475433]
[1770055081880,10.72945177,104.93,104.9,1.24475433]
[1770055082066,1.19922742,104.92,104.9,1.24475433]
[1770055082682,1.19922742,104.92,104.89,4.74085175]
[1770055083081,1.19922742,104.92,104.89,14.27430374]
[1770055084983,10.7303077,104.92,104.89,4.74085175]
[1770055085179,1.19922742,104.91,104.88,4.74085175]
[1770055085781,1.19922742,104.9,104.87,1.24475433]
[1770055086683,1.19922742,104.89,104.87,1.24475433]
[1770055086859,1.19922742,104.89,104.86,14.47689287]